bitfinex-derivatives/quotes_BTCF0:USTF0_20250903
["timestamp","ask_amount","ask_price","bid_price","bid_amount"]
[1756921779148,0.48972809,112520.0,112510.0,0.8396]
[1756921779449,0.56950396,112520.0,112510.0,1.20292809]
[1756921780242,0.56950396,112520.0,112510.0,0.8396]
[1756921780450,0.56950396,112520.0,112510.0,1.20292809]
[1756921782748,0.20870396,112520.0,112510.0,1.45292809]
[1756921782945,0.20870396,112520.0,112510.0,1.81372809]
[1756921782946,0.16359266,112520.0,112510.0,1.81372809]
[1756921783148,0.08381679,112520.0,112510.0,1.81372809]
[1756921783349,0.0677757,112520.0,112510.0,1.81372809]
[1756921783544,0.01978348,112520.0,112510.0,2.26591498]
[1756921783850,0.04921349,112520.0,112510.0,2.26591498]
[1756921784052,0.06777375,112520.0,112510.0,2.26591498]
[1756921784243,0.06777375,112520.0,112510.0,1.90258689]
[1756921786045,0.06777375,112520.0,112510.0,2.26591498]
[1756921786252,0.01978348,112520.0,112510.0,2.99257116]
[1756921787152,0.01978348,112520.0,112510.0,0.98420809]
[1756921787346,0.01978348,112520.0,112510.0,0.73452809]
[1756921787553,0.01978348,112520.0,112510.0,1.56304809]
[1756921788053,0.01978348,112520.0,112510.0,0.73452809]
[1756921788241,0.01978348,112520.0,112510.0,1.56308809]
[1756921789046,0.01978348,112520.0,112510.0,0.73452809]
[1756921789255,0.01978348,112520.0,112510.0,1.56292809]
[1756921790459,0.01978348,112520.0,112510.0,0.73452809]
[1756921790753,0.01978348,112520.0,112510.0,1.56272809]
[1756921791152,0.01978348,112520.0,112510.0,1.65158689]
[1756921792157,0.01978348,112520.0,112510.0,1.56272809]
[1756921792452,0.01978348,112520.0,112510.0,1.65158689]
[1756921794448,0.01978348,112520.0,112510.0,1.56272809]
[1756921795056,0.01978348,112520.0,112510.0,1.65158689]
[1756921795256,0.01978348,112520.0,112510.0,2.26491498]
[1756921795555,0.01978348,112520.0,112510.0,1.90158689]
[1756921795944,0.01978348,112520.0,112510.0,2.26491498]
[1756921797051,0.01978348,112520.0,112510.0,2.53011498]
[1756921797958,0.00122322,112520.0,112510.0,2.53011498]
[1756921798159,0.02008731,112520.0,112510.0,2.53011498]
[1756921798360,0.02008731,112520.0,112510.0,2.16678689]
[1756921799259,0.02008731,112520.0,112510.0,1.82792809]
[1756921799454,0.03459731,112520.0,112510.0,1.82644809]
[1756921799754,0.02008731,112520.0,112510.0,1.82644809]
[1756921800662,0.02008731,112520.0,112510.0,1.91530689]
[1756921801362,0.02008731,112520.0,112510.0,1.82644809]
[1756921802355,0.05923731,112520.0,112510.0,0.6364]
[1756921802556,0.30923731,112520.0,112510.0,1.82608809]
[1756921802756,1.0333654,112520.0,112510.0,0.2756]
[1756921803054,0.73407062,112520.0,112510.0,1.20068809]
[1756921803256,0.37327062,112520.0,112510.0,1.20068809]
[1756921803562,0.37327062,112520.0,112510.0,1.20073206]
[1756921804364,0.37327062,112520.0,112510.0,1.20041206]
[1756921804757,0.30923731,112520.0,112510.0,1.20041206]
[1756921805360,0.37911324,112520.0,112510.0,1.20041206]
[1756921805867,0.12911324,112520.0,112510.0,1.20073206]
[1756921806466,0.20888911,112520.0,112510.0,1.20073206]
[1756921807561,0.45888911,112520.0,112510.0,0.83736]
[1756921807763,1.24694493,112520.0,112510.0,0.82828]
[1756921807959,1.1032853,112520.0,112510.0,0.82792]
[1756921808360,0.8284809,112520.0,112510.0,0.82792]
[1756921808560,1.18306117,112520.0,112510.0,0.82792]
[1756921809159,1.18131117,112520.0,112510.0,0.00132]
[1756921809355,1.18131117,112520.0,112510.0,0.82661486]
[1756921809560,1.22230552,112520.0,112510.0,0.82672]
[1756921810164,1.22230552,112520.0,112490.0,2.24113206]
[1756921810363,0.06388827,112500.0,112490.0,2.24113206]
[1756921810562,0.08275236,112500.0,112490.0,3.06805206]
[1756921810762,0.06388827,112500.0,112490.0,3.06805206]
[1756921810964,0.08275236,112500.0,112490.0,3.06805206]
[1756921811268,0.08397558,112500.0,112490.0,3.06805206]
[1756921811468,0.44477558,112500.0,112490.0,3.06805206]
[1756921811770,0.08397558,112500.0,112490.0,3.06805206]
[1756921811959,0.08497558,112500.0,112490.0,3.07105206]
[1756921812266,0.08497558,112500.0,112490.0,3.07405206]
[1756921812769,0.08497558,112500.0,112490.0,3.07105206]
[1756921812960,0.08497558,112500.0,112490.0,3.07405206]
[1756921814663,0.06894428,112500.0,112490.0,3.07405206]
[1756921816868,0.06894428,112500.0,112490.0,1.88376]
[1756921817166,0.42974428,112500.0,112490.0,3.07393206]
[1756921818365,0.06894428,112500.0,112490.0,3.07393206]
[1756921820675,0.06894428,112500.0,112490.0,3.43473206]
[1756921823875,0.02108731,112500.0,112490.0,4.04810412]
[1756921824577,0.02108731,112500.0,112490.0,4.77484824]
[1756921824765,0.02108731,112500.0,112490.0,4.86372284]
[1756921825268,0.02108731,112500.0,112490.0,5.12892284]
[1756921825469,0.00222322,112500.0,112490.0,5.12892284]
[1756921827380,0.00222322,112500.0,112490.0,5.12800284]
[1756921828478,0.00222322,112500.0,112490.0,4.30212284]
[1756921828678,0.00222322,112500.0,112490.0,5.12748284]
[1756921829074,0.00222322,112500.0,112490.0,4.30212284]
[1756921829379,0.00222322,112500.0,112490.0,5.12736284]
[1756921831181,0.00222322,112500.0,112490.0,3.6738746]
[1756921831484,0.00222322,112500.0,112490.0,5.12736284]
[1756921831685,0.0001,112510.0,112500.0,0.0888667]
[1756921831875,0.0189229,112510.0,112500.0,1.92372698]
[1756921832979,0.0189229,112510.0,112500.0,2.75164698]
[1756921833876,0.0189229,112510.0,112500.0,2.75364698]
[1756921834584,0.0189229,112510.0,112500.0,2.75244748]
[1756921834777,0.0199229,112510.0,112500.0,1.93072748]
[1756921834983,0.0199229,112510.0,112500.0,2.75604748]
[1756921835485,0.0199229,112510.0,112500.0,3.02124748]
[1756921836988,0.0199229,112510.0,112500.0,2.93238028]
[1756921837282,0.0199229,112510.0,112500.0,3.02124748]
[1756921837786,0.0199229,112510.0,112500.0,3.02080748]
[1756921837980,0.0199229,112510.0,112500.0,2.93194028]
[1756921838379,0.0199229,112510.0,112500.0,3.02080748]
[1756921839784,0.0199229,112510.0,112500.0,2.10706028]
[1756921840088,0.0199229,112510.0,112500.0,2.93178028]
[1756921840990,0.0199229,112510.0,112500.0,3.02064748]
[1756921842183,0.0001,112520.0,112510.0,0.0888593]
[1756921842384,0.04785697,112530.0,112510.0,1.90314754]
[1756921842385,0.04795697,112530.0,112510.0,1.90314754]
[1756921842585,0.04795697,112530.0,112520.0,1.54881206]
[1756921842783,0.04785697,112530.0,112520.0,1.54881206]
[1756921843183,0.04795697,112540.0,112520.0,1.54881206]
[1756921843384,0.04795697,112540.0,112530.0,1.45348824]
[1756921843584,0.29785697,112540.0,112530.0,1.45348824]
[1756921843785,0.04785697,112540.0,112530.0,1.45348824]
[1756921844694,0.06388827,112540.0,112530.0,1.45348824]
[1756921845492,0.06388827,112540.0,112530.0,1.45548824]
[1756921845698,0.42478827,112550.0,112530.0,1.45548824]
[1756921845884,0.42478827,112550.0,112540.0,1.18797206]
[1756921846084,0.67468827,112550.0,112540.0,1.18797206]
[1756921846286,0.44066034,112550.0,112540.0,1.18797206]
[1756921847294,0.44066034,112550.0,112530.0,0.3629]
[1756921847491,0.06379448,112540.0,112530.0,1.71821618]
[1756921847698,0.06379448,112540.0,112530.0,2.54271618]
[1756921848085,0.06379448,112540.0,112530.0,2.54071618]
[1756921848485,0.06379448,112540.0,112530.0,2.54959383]
[1756921848997,0.06379448,112540.0,112530.0,2.91296589]
[1756921849181,0.06379448,112540.0,112530.0,2.91496589]
[1756921854292,0.0826534,112540.0,112530.0,2.91496589]
[1756921854491,0.06379448,112540.0,112530.0,2.91496589]
[1756921854793,0.04792735,112540.0,112530.0,2.91496589]
[1756921854992,0.06678627,112540.0,112530.0,2.91496589]
[1756921855397,0.04792735,112540.0,112530.0,2.91496589]
[1756921855591,0.06678627,112540.0,112530.0,2.91496589]
[1756921855791,0.04792735,112540.0,112530.0,2.91496589]
[1756921855991,0.06678627,112540.0,112530.0,2.91496589]
[1756921856194,0.04792735,112540.0,112530.0,2.91496589]
[1756921856395,0.06678627,112540.0,112530.0,2.91496589]
[1756921856595,0.04792735,112540.0,112530.0,2.91496589]
[1756921856796,0.06678627,112540.0,112530.0,2.91496589]
[1756921857000,0.04792735,112540.0,112530.0,2.91496589]
[1756921857295,0.06678627,112540.0,112530.0,4.79292589]
[1756921857487,0.04792735,112540.0,112530.0,4.79292589]
[1756921857686,0.06678627,112540.0,112530.0,4.79292589]
[1756921857900,0.04792735,112540.0,112530.0,4.79292589]
[1756921858102,0.06678627,112540.0,112530.0,3.96832589]
[1756921858292,0.04792735,112540.0,112530.0,4.79280589]
[1756921858493,0.06678627,112540.0,112530.0,4.79280589]
[1756921858689,0.04792735,112540.0,112530.0,4.79280589]
[1756921858894,0.06678627,112540.0,112530.0,4.79280589]
[1756921859096,0.04792735,112540.0,112530.0,4.79280589]
[1756921859293,0.06678627,112540.0,112530.0,4.79280589]
[1756921859492,0.04792735,112540.0,112530.0,4.79280589]
[1756921859694,0.06678627,112540.0,112530.0,4.79280589]
[1756921859894,0.06678627,112540.0,112530.0,4.52760589]
[1756921860198,0.04792735,112540.0,112530.0,4.52760589]
[1756921860394,0.06678627,112540.0,112530.0,4.52760589]
[1756921860594,0.04792735,112540.0,112530.0,4.52760589]
[1756921861395,0.06678627,112540.0,112530.0,4.52760589]
[1756921861601,0.04792735,112540.0,112530.0,4.52760589]
[1756921861803,0.06678627,112540.0,112530.0,4.52760589]
[1756921862102,0.04792735,112540.0,112530.0,4.52760589]
[1756921862600,0.06678627,112540.0,112530.0,4.52760589]
[1756921862801,0.04792735,112540.0,112530.0,4.52760589]
[1756921863002,0.06678627,112540.0,112530.0,4.52760589]
[1756921865504,0.06678627,112540.0,112530.0,4.52653553]
[1756921865901,0.01885892,112540.0,112530.0,4.86537903]
[1756921866101,0.06383448,112570.0,112540.0,0.0888295]
[1756921866299,0.06383448,112570.0,112560.0,1.81321788]
[1756921866900,4e-05,112570.0,112560.0,1.81321788]
[1756921867094,0.06383448,112570.0,112560.0,2.63757788]
[1756921867307,4e-05,112570.0,112560.0,2.63757788]
[1756921868599,0.00104,112570.0,112560.0,2.63757788]
[1756921869097,0.00404,112570.0,112560.0,2.63757788]
[1756921869304,0.00304,112570.0,112560.0,2.63757788]
[1756921869604,0.00604,112570.0,112560.0,2.63757788]
[1756921872804,0.01969,112570.0,112560.0,2.63757788]
[1756921873111,0.01969,112570.0,112560.0,1.81321788]
[1756921873311,0.01969,112570.0,112560.0,2.63745788]
[1756921873508,0.00604,112570.0,112560.0,2.72627768]
[1756921873703,0.00604,112570.0,112560.0,2.63745788]
[1756921874111,0.00604,112570.0,112560.0,2.72627768]
[1756921874413,0.00604,112570.0,112560.0,2.63745788]
[1756921874615,0.00504,112570.0,112560.0,2.63745788]
[1756921875610,0.00304,112570.0,112560.0,2.63745788]
[1756921876007,0.00304,112570.0,112560.0,2.72627768]
[1756921877200,0.00304,112570.0,112560.0,2.97627768]
[1756921878112,0.00304,112570.0,112560.0,0.7086998]
[1756921878317,0.02149899,112570.0,112560.0,2.89641788]
[1756921878612,0.02149899,112570.0,112560.0,2.89637788]
[1756921879014,0.02149899,112570.0,112560.0,2.90081788]
[1756921882214,0.02149899,112570.0,112560.0,2.07673788]
[1756921882416,0.02149899,112570.0,112560.0,2.90073788]
[1756921883807,0.03514899,112570.0,112560.0,2.07673788]
[1756921884013,0.02149899,112570.0,112560.0,2.90069788]
[1756921884916,0.02149899,112570.0,112560.0,2.98951768]
[1756921885712,0.02149899,112570.0,112560.0,2.90069788]
[1756921886214,0.03514899,112570.0,112560.0,2.90069788]
[1756921886418,0.03514899,112570.0,112560.0,2.90065788]
[1756921886613,0.03514899,112570.0,112560.0,2.07673788]
[1756921886809,0.03514899,112570.0,112560.0,2.65065788]
[1756921887006,0.03514899,112570.0,112560.0,0.73742447]
[1756921887211,0.30954899,112570.0,112560.0,0.73742447]
[1756921887411,0.30954899,112570.0,112560.0,1.56130447]
[1756921888314,0.35733413,112570.0,112560.0,1.56130447]
[1756921889123,0.02149899,112570.0,112560.0,2.65061788]
[1756921890528,0.02149899,112570.0,112560.0,2.73943768]
[1756921894123,0.02149899,112570.0,112560.0,2.65061788]
[1756921894722,0.05082514,112570.0,112560.0,2.73943768]
[1756921894921,0.04982514,112570.0,112560.0,2.73943768]
[1756921895432,0.06828413,112570.0,112560.0,2.73943768]
[1756921896033,0.06728413,112570.0,112560.0,2.73943768]
[1756921896533,0.07754448,112580.0,112570.0,0.36310447]
[1756921896733,0.10184448,112580.0,112570.0,0.73298447]
[1756921897735,0.10484448,112580.0,112570.0,0.73298447]
[1756921898743,0.10484448,112580.0,112570.0,1.55670447]
[1756921898934,0.06679448,112580.0,112570.0,1.55670447]
[1756921899239,0.06679448,112580.0,112570.0,1.56237447]
[1756921900440,0.06679448,112580.0,112570.0,3.43957447]
[1756921901537,0.06679448,112580.0,112570.0,3.07647]
[1756921901742,0.06404944,112590.0,112580.0,1.46149788]
[1756921901941,5.375e-05,112590.0,112580.0,1.82229788]
[1756921902834,0.00305375,112590.0,112580.0,1.82229788]
[1756921903036,0.00505375,112590.0,112580.0,1.89433168]
[1756921903835,0.01938375,112590.0,112580.0,2.71797168]
[1756921904036,0.01475,112600.0,112580.0,2.71797168]
[1756921904237,0.03729,112600.0,112590.0,0.73298447]
[1756921904434,0.03719,112600.0,112590.0,0.75388441]
[1756921904643,0.001,112600.0,112590.0,1.84319782]
[1756921904945,0.001,112600.0,112590.0,1.84763782]
[1756921905640,0.001,112600.0,112590.0,2.16763782]
[1756921905846,0.01275,112610.0,112590.0,2.16763782]
[1756921906043,0.001,112600.0,112590.0,1.84773782]
[1756921906340,0.002,112600.0,112590.0,3.03199782]
[1756921907039,0.001,112600.0,112590.0,3.03199782]
[1756921907337,0.01575,112610.0,112590.0,3.36199782]
[1756921907645,0.03829,112610.0,112600.0,0.73458447]
[1756921907837,0.03819,112610.0,112600.0,0.73458447]
[1756921908345,0.03819,112610.0,112600.0,1.55810447]
[1756921908646,0.03819,112610.0,112600.0,0.73458447]
[1756921908837,0.03519,112610.0,112600.0,1.55810447]
[1756921909536,0.03619,112610.0,112600.0,1.55810447]
[1756921909740,0.03819,112610.0,112600.0,1.55810447]
[1756921910245,0.03819,112610.0,112600.0,0.73458447]
[1756921910446,0.03819,112610.0,112600.0,1.55806447]
[1756921912041,0.03819,112610.0,112600.0,0.73458447]
[1756921912250,0.03819,112610.0,112600.0,1.55802447]
[1756921913244,0.03819,112610.0,112600.0,0.73458447]
[1756921913448,0.03819,112610.0,112600.0,1.55798447]
[1756921914947,0.03819,112610.0,112600.0,0.73458447]
[1756921915148,0.03819,112610.0,112600.0,1.55794447]
[1756921916851,0.03819,112610.0,112600.0,0.73458447]
[1756921917146,0.08595634,112610.0,112600.0,1.55790447]
[1756921917347,0.33595634,112610.0,112600.0,1.55790447]
[1756921918454,0.33495634,112610.0,112600.0,1.55790447]
[1756921918644,0.33595634,112610.0,112600.0,1.55790447]
[1756921918952,0.33395634,112610.0,112600.0,1.55790447]
[1756921919146,0.08495634,112610.0,112600.0,1.55790447]
[1756921919352,0.08495634,112610.0,112600.0,0.73458447]
[1756921919555,0.08495634,112610.0,112600.0,1.55790447]
[1756921921452,0.08495634,112610.0,112600.0,0.73458447]
[1756921921651,0.08495634,112610.0,112600.0,1.55786447]
[1756921924149,0.06241634,112610.0,112600.0,1.55786447]
[1756921924457,0.06241634,112610.0,112600.0,1.82306447]
[1756921924658,0.01465,112610.0,112600.0,1.82306447]
[1756921924860,0.06241634,112610.0,112600.0,1.82306447]
[1756921926062,0.01465,112610.0,112600.0,1.82306447]
[1756921926369,0.06241634,112610.0,112600.0,1.82306447]
[1756921926857,0.04976634,112610.0,112600.0,1.82306447]
[1756921927364,0.002,112610.0,112600.0,1.82306447]
[1756921927554,0.002,112610.0,112600.0,1.82258395]
[1756921928562,0.001,112610.0,112600.0,1.82358395]
[1756921928762,0.06219634,112620.0,112600.0,1.82358395]
[1756921929063,0.08535634,112620.0,112610.0,0.73410395]
[1756921929262,0.23022839,112630.0,112610.0,1.9218641]
[1756921929263,0.14382626,112630.0,112610.0,1.9218641]
[1756921929457,4e-05,112640.0,112620.0,4.5998689]
[1756921929655,4e-05,112640.0,112630.0,1.8112958]
[1756921929855,4e-05,112640.0,112630.0,1.10662431]
[1756921930055,4e-05,112640.0,112630.0,1.35662431]
[1756921930255,0.06372626,112660.0,112640.0,0.0887538]
[1756921930451,0.03753,112670.0,112650.0,2.6344558]
[1756921930657,0.03753,112670.0,112660.0,0.36262395]
[1756921931158,0.43889626,112680.0,112660.0,1.5484079]
[1756921931358,0.01437,112680.0,112670.0,3.3270558]
[1756921931553,0.01437,112680.0,112670.0,2.23918395]
[1756921931957,0.01437,112680.0,112670.0,3.06286395]
[1756921932152,0.01437,112680.0,112670.0,2.23918395]
[1756921932356,0.26437,112680.0,112670.0,2.23918395]
[1756921932557,0.26437,112680.0,112670.0,3.06278395]
[1756921932757,0.26437,112680.0,112670.0,3.42350395]
[1756921932960,0.26437,112680.0,112670.0,2.23736]
[1756921933262,0.26537,112680.0,112670.0,3.42346395]
[1756921933658,0.62617,112680.0,112670.0,1.87656]
[1756921933964,0.98879395,112680.0,112670.0,1.87656]
[1756921934169,0.98879395,112680.0,112670.0,2.70012]
[1756921934372,0.43989626,112680.0,112670.0,3.06274395]
[1756921934674,0.37717,112680.0,112670.0,2.70012]
[1756921934966,0.45703034,112680.0,112670.0,2.70052]
[1756921935666,1.06965429,112680.0,112670.0,1.87656]
[1756921935866,1.06965429,112680.0,112670.0,2.70036]
[1756921936057,0.70703034,112680.0,112670.0,2.70036]
[1756921936259,1.06965429,112680.0,112670.0,2.70056]
[1756921936766,1.06965429,112680.0,112670.0,1.87656]
[1756921936973,0.98979395,112680.0,112670.0,2.70048]
[1756921937269,0.98979395,112680.0,112670.0,1.87656]
[1756921937473,0.98979395,112680.0,112670.0,2.70036]
[1756921937670,1.10178083,112680.0,112670.0,2.70036]
[1756921938972,0.48915688,112680.0,112670.0,3.06298395]
[1756921939778,0.73915688,112680.0,112670.0,3.06267487]
[1756921940974,0.73915688,112680.0,112670.0,2.70005092]
[1756921941964,1.10178083,112680.0,112670.0,1.87625092]
[1756921942271,1.10178083,112680.0,112670.0,2.69949092]
[1756921942466,0.98979395,112680.0,112670.0,2.69973092]
[1756921944069,2.0776658,112680.0,112670.0,1.87625092]
[1756921944270,2.0864558,112680.0,112630.0,2.25741641]
[1756921944468,0.07794064,112640.0,112630.0,2.62004036]
[1756921944670,0.01437,112640.0,112630.0,3.44376036]
[1756921945571,0.01437,112640.0,112630.0,3.44576036]
[1756921945774,0.01437,112640.0,112630.0,2.62604036]
[1756921945979,0.01437,112640.0,112630.0,3.42886395]
[1756921946479,0.01437,112640.0,112630.0,3.67886395]
[1756921946670,0.43874064,112650.0,112630.0,3.67886395]
[1756921946874,0.43874064,112650.0,112640.0,0.36262395]
[1756921947075,0.07794064,112650.0,112640.0,0.36262395]
[1756921948179,0.07794064,112650.0,112640.0,0.36562395]
[1756921948381,0.07794064,112650.0,112640.0,0.36572395]
[1756921948781,0.07794064,112650.0,112640.0,0.36672395]
[1756921949186,0.46190064,112650.0,112640.0,0.36672395]
[1756921949385,0.46190064,112650.0,112640.0,1.18980395]
[1756921949585,0.46190064,112650.0,112640.0,0.0041]
[1756921949882,0.46190064,112650.0,112640.0,0.8273]
[1756921950384,0.46190064,112650.0,112640.0,0.82718]
[1756921950780,1.07452459,112650.0,112640.0,0.0041]
[1756921950984,1.07452459,112650.0,112640.0,0.82718]
[1756921951180,1.01095395,112650.0,112640.0,0.82718]
[1756921951587,1.09041725,112650.0,112640.0,0.82722]
[1756921952486,1.09041725,112650.0,112640.0,0.0041]
[1756921952688,1.09926018,112650.0,112640.0,0.8271]
[1756921953083,1.09926018,112650.0,112640.0,0.0041]
[1756921953278,1.09926018,112650.0,112640.0,0.8271]
[1756921953476,1.09928873,112650.0,112640.0,0.8271]
[1756921953678,1.09928873,112650.0,112640.0,0.0041]
[1756921953885,1.09928873,112650.0,112640.0,0.8271]
[1756921954687,2.18724623,112650.0,112640.0,0.8271]
[1756921954985,0.01437,112640.0,112630.0,1.87604]
[1756921955192,0.8172858,112640.0,112630.0,1.87604]
[1756921955378,0.8172858,112640.0,112630.0,2.69908]
[1756921955791,0.8172858,112640.0,112630.0,1.87604]
[1756921955990,0.8172858,112640.0,112630.0,2.69908]
[1756921956290,0.8172858,112640.0,112630.0,2.70308]
[1756921957086,0.4546333,112640.0,112630.0,1.88204]
[1756921957286,0.8172858,112640.0,112630.0,2.70508]
[1756921958996,0.8172858,112640.0,112630.0,1.88204]
[1756921959294,0.8172858,112640.0,112630.0,2.70524]
[1756921959593,1.0672858,112640.0,112630.0,2.70524]
[1756921959794,1.0672858,112640.0,112630.0,1.88204]
[1756921959996,1.0672858,112640.0,112630.0,2.70512]
[1756921961486,1.0672858,112640.0,112630.0,0.006]
[1756921961487,1.0904458,112640.0,112630.0,0.006]
[1756921961794,1.0904458,112640.0,112630.0,0.70284]
[1756921961997,1.0109825,112640.0,112630.0,0.70284]
[1756921962295,1.0109825,112640.0,112630.0,0.7094]
[1756921963096,1.0109825,112640.0,112630.0,0.70284]
[1756921963598,1.12296938,112640.0,112630.0,0.004]
[1756921963792,1.0109825,112640.0,112630.0,0.82712]
[1756921963994,0.03694,112610.0,112600.0,0.03160121]
[1756921964189,0.44546421,112610.0,112600.0,0.011]
[1756921964389,0.44546421,112610.0,112600.0,1.1967725]
[1756921964590,0.44546421,112610.0,112600.0,0.83412]
[1756921964788,0.46137228,112610.0,112600.0,0.83412]
[1756921965188,0.46137228,112610.0,112600.0,0.83812]
[1756921965498,0.46137228,112610.0,112600.0,0.015]
[1756921965994,0.7603925,112610.0,112600.0,0.83616]
[1756921966196,0.83993285,112610.0,112600.0,0.83172]
[1756921966498,0.83993285,112610.0,112600.0,0.005]
[1756921966499,1.08993285,112610.0,112600.0,0.005]
[1756921966698,1.08993285,112610.0,112600.0,0.82816]
[1756921966897,1.16091057,112610.0,112600.0,0.82816]
[1756921967095,1.16091057,112610.0,112600.0,0.82616]
[1756921967296,0.91091057,112610.0,112600.0,0.83272]
[1756921967489,0.91091057,112610.0,112600.0,0.83072]
[1756921967691,0.91691057,112610.0,112600.0,0.83072]
[1756921967892,0.91791057,112610.0,112600.0,0.83072]
[1756921969095,0.98150126,112610.0,112600.0,0.83072]
[1756921969290,0.90196091,112610.0,112600.0,0.83072]
[1756921969892,0.90196091,112610.0,112600.0,0.8308]
[1756921972903,0.53930841,112610.0,112600.0,0.8308]
[1756921973106,0.90196091,112610.0,112600.0,0.8308]
[1756921973497,0.90219388,112610.0,112600.0,0.8308]
[1756921975106,0.90219388,112610.0,112600.0,0.8312]
[1756921975497,0.90219388,112610.0,112600.0,0.001]
[1756921975700,1.15219388,112610.0,112600.0,0.82464]
[1756921976001,1.44940319,112610.0,112600.0,0.82464]
[1756921976200,1.52894354,112610.0,112600.0,0.82464]
[1756921976401,1.52894354,112610.0,112600.0,0.82608]
[1756921976601,1.44940319,112610.0,112600.0,0.82608]
[1756921977001,1.56139007,112610.0,112600.0,0.82608]
[1756921977207,1.56139007,112610.0,112600.0,0.82596]
[1756921977401,1.64094746,112610.0,112600.0,0.82596]
[1756921977594,1.52896058,112610.0,112600.0,0.82576]
[1756921979106,1.52896058,112610.0,112600.0,0.83232]
[1756921979312,1.27896058,112610.0,112600.0,0.83232]
[1756921983420,1.27896058,112610.0,112600.0,0.82512]
[1756921983912,1.27896058,112610.0,112600.0,0.001]
[1756921983913,1.52896058,112610.0,112600.0,0.001]
[1756921984120,0.03694,112600.0,112590.0,0.0001]
[1756921984418,0.03694,112590.0,112580.0,0.34838]
[1756921984716,1.84928188,112590.0,112580.0,0.22825085]
[1756921984909,1.84928188,112590.0,112570.0,0.70814]
[1756921984910,0.03694,112580.0,112570.0,0.70814]
[1756921985112,0.03694,112570.0,112560.0,0.00666]
[1756921985313,0.84029403,112570.0,112560.0,0.83144]
[1756921985618,0.84054224,112570.0,112560.0,0.83144]
[1756921986610,0.84154224,112570.0,112560.0,0.83144]
[1756921986812,0.81832224,112570.0,112560.0,0.83144]
[1756921987416,0.84154224,112570.0,112560.0,0.83144]
[1756921988419,0.84154224,112570.0,112560.0,0.83244]
[1756921988917,0.47840934,112570.0,112560.0,0.83244]
[1756921989119,0.45518934,112570.0,112560.0,1.1955729]
[1756921989515,0.45518934,112570.0,112560.0,1.19548683]
[1756921990419,0.45518934,112570.0,112560.0,0.83244]
[1756921991022,0.47797934,112570.0,112560.0,0.83244]
[1756921992219,0.09438934,112570.0,112560.0,0.83244]
[1756921992722,0.001,112570.0,112560.0,1.44548683]
[1756921993321,0.01562,112570.0,112560.0,1.44548683]
[1756921993524,0.37642,112570.0,112560.0,1.44548683]
[1756921994628,0.42426038,112570.0,112560.0,1.44548683]
[1756921995120,0.37642,112570.0,112560.0,1.44548683]
[1756921995315,0.37642,112570.0,112560.0,1.08244]
[1756921995521,0.37642,112570.0,112560.0,1.44548683]
[1756921997023,0.06478717,112570.0,112560.0,2.89542732]
[1756921997220,0.001,112570.0,112560.0,3.20542732]
[1756921997424,0.001,112570.0,112560.0,3.29424472]
[1756921997727,0.001,112570.0,112560.0,3.55944472]
[1756921998026,0.001,112570.0,112560.0,3.29424472]
[1756921998525,0.001,112570.0,112560.0,3.29320472]
[1756921998920,0.001,112570.0,112560.0,3.29764472]
[1756921999328,0.001,112570.0,112560.0,3.32139073]
[1756922001821,0.001,112570.0,112560.0,3.32111073]
[1756922002224,0.001,112570.0,112560.0,2.49755073]
[1756922002425,0.001,112570.0,112560.0,3.32111073]
[1756922004629,0.001,112570.0,112560.0,3.58631073]
[1756922005231,0.001,112570.0,112560.0,3.56256472]
[1756922005430,0.00104,112570.0,112560.0,3.56256472]
[1756922006731,0.00104,112570.0,112560.0,3.58631073]
[1756922007223,0.00104,112570.0,112560.0,3.56256472]
[1756922007424,0.00104,112570.0,112560.0,3.92533351]
[1756922008431,0.00104,112570.0,112560.0,3.92521351]
[1756922009425,0.00104,112570.0,112560.0,3.56133256]
[1756922009628,0.01566,112570.0,112560.0,1.8602574]
[1756922009825,0.01566,112570.0,112560.0,3.31133256]
[1756922010433,0.00104,112570.0,112560.0,3.31133256]
[1756922013228,0.01566,112570.0,112560.0,3.22391516]
[1756922013826,0.01566,112570.0,112560.0,2.99391516]
[1756922014530,0.01566,112570.0,112560.0,3.08245256]
[1756922015524,0.01566,112570.0,112560.0,2.16907516]
[1756922015730,0.28845,112570.0,112560.0,1.00076879]
[1756922015934,0.28845,112570.0,112560.0,1.82484879]
[1756922016438,0.28845,112570.0,112560.0,1.46208]
[1756922016638,0.28845,112570.0,112560.0,1.82468879]
[1756922017634,0.28845,112570.0,112560.0,2.18745758]
[1756922017831,0.00104,112570.0,112560.0,3.36591256]
[1756922018130,0.00104,112570.0,112560.0,3.38965857]
[1756922018532,0.01566,112570.0,112560.0,3.38555857]
[1756922019139,0.00104,112570.0,112560.0,3.38555857]
[1756922019538,0.00104,112570.0,112560.0,3.38647377]
[1756922019837,0.00104,112570.0,112560.0,2.56187377]
[1756922020040,0.00104,112570.0,112560.0,3.38643377]
[1756922020736,0.00104,112570.0,112560.0,2.56187377]
[1756922020942,0.00104,112570.0,112560.0,3.38623377]
[1756922024444,0.00104,112570.0,112560.0,3.63622996]
[1756922024647,0.00104,112570.0,112560.0,3.64417257]
[1756922024943,0.00104,112570.0,112560.0,3.63622567]
[1756922025846,0.00104,112570.0,112560.0,3.63522567]
[1756922026143,4e-05,112570.0,112560.0,3.64022567]
[1756922026343,0.00104,112570.0,112560.0,3.64422567]
[1756922026540,0.00104,112570.0,112560.0,2.81986567]
[1756922027544,0.00104,112570.0,112560.0,3.64330567]
[1756922027942,0.26515,112570.0,112560.0,2.48104827]
[1756922028238,0.26515,112570.0,112560.0,3.06075036]
[1756922029546,0.26515,112570.0,112560.0,2.23731036]
[1756922029741,0.26515,112570.0,112560.0,3.06075036]
[1756922031043,0.26515,112570.0,112560.0,2.23731036]
[1756922031349,0.28849,112570.0,112560.0,0.74362759]
[1756922031544,0.33634457,112570.0,112560.0,1.56706759]
[1756922031849,0.33634457,112570.0,112560.0,0.37424]
[1756922032049,0.33634457,112570.0,112560.0,1.19768]
[1756922033046,0.33634457,112570.0,112560.0,1.56050759]
[1756922033346,0.08634457,112570.0,112560.0,1.92333518]
[1756922033552,0.08634457,112570.0,112560.0,2.64899036]
[1756922034449,0.06300457,112570.0,112560.0,2.64899036]
[1756922034847,0.01515,112570.0,112560.0,2.64899036]
[1756922037041,0.00104,112570.0,112560.0,2.73780786]
[1756922037245,0.00104,112570.0,112560.0,3.00300786]
[1756922037445,0.00104,112570.0,112560.0,2.91419036]
[1756922037846,0.01515,112570.0,112560.0,2.91419036]
[1756922039160,0.01515,112570.0,112560.0,3.28419036]
[1756922039359,0.01515,112570.0,112560.0,2.91419036]
[1756922040551,0.01515,112570.0,112560.0,2.09075036]
[1756922040749,0.01515,112570.0,112560.0,1.00226759]